bitfinex-derivatives/quotes_BTCF0:USTF0_20241122
["timestamp","ask_amount","ask_price","bid_price","bid_amount"]
[1732301312400,0.411299,98917.0,98900.0,0.1]
[1732301312601,0.050507,98901.0,98900.0,0.1]
[1732301314305,0.0333,98905.0,98900.0,0.4608]
[1732301314501,0.09778672,98930.0,98900.0,0.4608]
[1732301314709,0.10216,98919.0,98915.0,0.3608]
[1732301314905,0.0646,98931.0,98918.0,0.050498]
[1732301315102,0.3608,98923.0,98901.0,0.3608]
[1732301315412,0.050507,98901.0,98900.0,0.1]
[1732301316207,0.050504,98907.0,98900.0,0.1]
[1732301316409,0.09778672,98920.0,98900.0,0.1]
[1732301316410,0.10216,98918.0,98906.0,0.3608]
[1732301317313,0.0505,98914.0,98906.0,0.3608]
[1732301317505,0.3608,98917.0,98900.0,0.1]
[1732301317705,0.050507,98901.0,98900.0,0.1]
[1732301318105,0.3608,98907.0,98900.0,0.1]
[1732301318106,0.0332,98906.0,98900.0,0.1]
[1732301318312,0.050506,98903.0,98900.0,0.1]
[1732301318510,0.10216,98910.0,98900.0,0.1]
[1732301318511,0.10216,98910.0,98901.0,0.0326]
[1732301318711,0.050505,98906.0,98901.0,0.0326]
[1732301318915,0.3608,98917.0,98901.0,0.0326]
[1732301319106,0.3608,98917.0,98902.0,0.0308]
[1732301319312,0.050502,98911.0,98902.0,0.081306]
[1732301319521,0.050502,98911.0,98903.0,0.050506]
[1732301320117,0.0505,98916.0,98909.0,0.050503]
[1732301321118,0.02017585,98919.0,98902.0,0.0308]
[1732301321422,0.02017585,98919.0,98907.0,0.3608]
[1732301322008,0.0505,98916.0,98907.0,0.411304]
[1732301322208,0.02017585,98919.0,98907.0,0.411304]
[1732301322209,0.0505,98915.0,98907.0,0.411304]
[1732301324314,0.07067385,98919.0,98907.0,0.3608]
[1732301324513,0.050495,98925.0,98915.0,0.411299]
[1732301324714,0.10476,98933.0,98923.0,0.050496]
[1732301324917,0.10476,98933.0,98915.0,0.3608]
[1732301324918,0.050495,98925.0,98917.0,0.050499]
[1732301325126,0.0628,98938.0,98915.0,0.3608]
[1732301325322,0.050493,98928.0,98919.0,0.050498]
[1732301325521,0.0628,98938.0,98919.0,0.050498]
[1732301325721,0.0628,98938.0,98915.0,0.3608]
[1732301325913,0.050493,98929.0,98921.0,0.050497]
[1732301326113,0.050493,98929.0,98922.0,0.0312]
[1732301326324,0.0706712,98927.0,98922.0,0.0312]
[1732301326520,0.0201772,98927.0,98922.0,0.0312]
[1732301327222,0.050496,98923.0,98922.0,0.0312]
[1732301327424,0.0201772,98927.0,98922.0,0.0312]
[1732301327624,0.050496,98923.0,98922.0,0.0312]
[1732301327826,0.0706712,98927.0,98922.0,0.0312]
[1732301328021,0.050495,98925.0,98922.0,0.0312]
[1732301328417,0.3608,98931.0,98922.0,0.081696]
[1732301328623,0.00151676,98937.0,98922.0,0.081696]
[1732301328624,0.00151676,98937.0,98924.0,0.3608]
[1732301329226,0.050489,98936.0,98928.0,0.050493]
[1732301329428,0.00151676,98937.0,98924.0,0.3608]
[1732301329624,0.050491,98933.0,98924.0,0.3608]
[1732301329926,0.050489,98936.0,98927.0,0.050493]
[1732301330225,0.00151676,98937.0,98924.0,0.3608]
[1732301330427,0.05049,98934.0,98924.0,0.3608]
[1732301330624,0.00151676,98937.0,98929.0,0.050493]
[1732301330821,0.050491,98933.0,98925.0,0.050495]
[1732301331128,0.00151676,98937.0,98928.0,0.050493]
[1732301331830,0.00151676,98937.0,98924.0,0.3608]
[1732301332028,0.00151676,98937.0,98924.0,0.411295]
[1732301332214,0.050491,98933.0,98924.0,0.411295]
[1732301332420,0.050491,98933.0,98926.0,0.050494]
[1732301332622,0.050492,98932.0,98924.0,0.411295]
[1732301332918,0.050492,98932.0,98925.0,0.050495]
[1732301333118,0.050495,98925.0,98924.0,0.3608]
[1732301333321,0.00151676,98937.0,98924.0,0.3608]
[1732301333534,0.050492,98931.0,98927.0,0.09778672]
[1732301334422,0.050492,98931.0,98926.0,0.050494]
[1732301334618,0.05049,98934.0,98925.0,0.050495]
[1732301334819,0.050495,98925.0,98924.0,0.3608]
[1732301335423,0.0313,98936.0,98924.0,0.3608]
[1732301336331,0.00151676,98937.0,98924.0,0.3608]
[1732301336522,0.00151676,98937.0,98927.0,0.09778672]
[1732301336723,0.00151676,98937.0,98933.0,0.050491]
[1732301337032,0.00151676,98937.0,98932.0,0.050491]
[1732301337337,0.00151676,98937.0,98936.0,0.050489]
[1732301337625,0.00151676,98937.0,98935.0,0.0627]
[1732301338621,0.00151676,98937.0,98934.0,0.41229]
[1732301338622,0.00151676,98937.0,98934.0,0.3618]
[1732301338924,0.00151676,98937.0,98934.0,0.3608]
[1732301339122,0.05200576,98937.0,98934.0,0.3608]
[1732301339625,0.00151676,98937.0,98934.0,0.3608]
[1732301340427,0.05049,98935.0,98934.0,0.3608]
[1732301340628,0.00151676,98937.0,98934.0,0.3608]
[1732301341226,0.3608,98951.0,98935.0,0.25637081]
[1732301341428,0.3608,98951.0,98940.0,0.09778672]
[1732301341636,0.050484,98947.0,98940.0,0.09778672]
[1732301341937,0.050484,98946.0,98940.0,0.09778672]
[1732301342138,0.050486,98942.0,98940.0,0.09778672]
[1732301342336,0.3608,98951.0,98935.0,0.10472]
[1732301342533,0.050482,98951.0,98943.0,0.411285]
[1732301342732,0.050482,98951.0,98944.0,0.050485]
[1732301342924,0.050484,98946.0,98943.0,0.3608]
[1732301343128,0.3608,98960.0,98943.0,0.3608]
[1732301343129,0.050485,98944.0,98943.0,0.3608]
[1732301343431,0.050487,98940.0,98933.0,0.3608]
[1732301343630,0.050479,98956.0,98933.0,0.3608]
[1732301343631,0.10472,98956.0,98933.0,0.3608]
[1732301343842,0.0201728,98959.0,98946.0,0.09778672]
[1732301344038,0.0201728,98959.0,98958.0,0.050478]
[1732301344542,0.050474,98966.0,98958.0,0.050478]
[1732301344733,0.050474,98966.0,98954.0,0.3608]
[1732301344734,0.3608,98970.0,98955.0,0.05048]
[1732301344926,0.3608,98970.0,98962.0,0.050476]
[1732301345827,0.02017584,98983.0,98962.0,0.714436]
[1732301346028,0.050464,98985.0,98977.0,0.050468]
[1732301346329,0.050461,98992.0,98972.0,0.46652]
[1732301346536,0.050469,98976.0,98972.0,0.46552]
[1732301346745,0.050461,98992.0,98972.0,0.46552]
[1732301346940,0.050469,98975.0,98972.0,0.3608]
[1732301347237,0.05047,98973.0,98972.0,0.3608]
[1732301349237,0.050475,98963.0,98962.0,0.3618]
[1732301349436,0.050475,98963.0,98962.0,0.3608]
[1732301356135,0.050475,98963.0,98957.0,0.00151582]
[1732301356136,0.050478,98958.0,98957.0,0.00151582]
[1732301356438,0.050493,98928.0,98927.0,0.10044]
[1732301356638,0.050493,98928.0,98925.0,0.031]
[1732301356944,0.3608,98941.0,98928.0,0.15230979]
[1732301357147,0.050492,98931.0,98930.0,0.09778672]
[1732301357336,0.050487,98940.0,98929.0,0.15230979]
[1732301357541,0.050483,98949.0,98926.0,0.25274979]
[1732301357542,0.0319,98948.0,98928.0,0.15145562]
[1732301357847,0.050487,98941.0,98938.0,0.09778672]
[1732301358042,0.050487,98940.0,98934.0,0.3608]
[1732301358236,0.0317,98957.0,98934.0,0.3608]
[1732301358546,0.36132001,98961.0,98947.0,0.09778672]
[1732301358741,0.050479,98956.0,98948.0,0.0303]
[1732301358940,0.050479,98956.0,98949.0,0.0327]
[1732301359246,0.3608,98961.0,98949.0,0.0327]
[1732301359437,0.050482,98950.0,98949.0,0.0327]
[1732301359835,0.050479,98956.0,98949.0,0.0327]
[1732301360141,0.05048,98955.0,98949.0,0.07161779]
[1732301360441,0.3927,98967.0,98949.0,0.0327]
[1732301360644,0.39322001,98967.0,98950.0,0.09778672]
[1732301361539,0.050481,98953.0,98950.0,0.09778672]
[1732301361739,0.443174,98967.0,98949.0,0.0327]
[1732301361945,0.05048,98955.0,98949.0,0.0327]
[1732301362337,0.3927,98967.0,98954.0,0.3608]
[1732301362545,0.00052001,98967.0,98960.0,0.050477]
[1732301362746,0.050471,98972.0,98956.0,0.050479]
[1732301363049,0.050468,98977.0,98967.0,0.050473]
[1732301363236,0.050469,98976.0,98967.0,0.050473]
[1732301363435,0.050468,98978.0,98967.0,0.050473]
[1732301363651,0.3608,98980.0,98967.0,0.10044]
[1732301363945,0.3608,98980.0,98972.0,0.3608]
[1732301363946,0.05047,98973.0,98972.0,0.3608]
[1732301364848,0.050472,98969.0,98968.0,0.0647]
[1732301365243,0.3608,98980.0,98968.0,0.0647]
[1732301365445,0.05047,98974.0,98968.0,0.0647]
[1732301365745,0.050467,98979.0,98968.0,0.0647]
[1732301365947,0.050471,98972.0,98968.0,0.0647]
[1732301366142,0.0657,98989.0,98968.0,0.0647]
[1732301366348,0.00151588,98998.0,98981.0,0.3608]
[1732301366546,0.00151588,98998.0,98997.0,0.3608]
[1732301367345,8.8e-07,98998.0,98997.0,0.7217052]
[1732301367548,0.12049146,99038.0,98997.0,0.7217052]
[1732301367549,0.09026652,99039.0,99005.0,0.3608]
[1732301367758,0.09026652,99045.0,99029.0,0.19557344]
[1732301367956,0.09026652,99051.0,99044.0,0.3608]
[1732301368151,0.04724385,99050.0,99044.0,0.3608]
[1732301368350,0.04724385,99049.0,99044.0,0.3608]
[1732301368550,0.00011492,99052.0,99044.0,0.3608]
[1732301369044,0.04093107,99051.0,99044.0,0.3608]
[1732301369247,0.04093107,99050.0,99044.0,0.3608]
[1732301369448,0.050431,99050.0,99044.0,0.3608]
[1732301369655,0.04093172,99049.0,99044.0,0.3608]
[1732301369854,0.050431,99050.0,99044.0,0.3608]
[1732301369855,0.00011492,99052.0,99044.0,0.3608]
[1732301370059,0.04722909,99051.0,99044.0,0.3608]
[1732301370352,0.04722909,99051.0,99030.0,0.21153194]
[1732301370353,0.050443,99026.0,98990.0,0.3608]
[1732301370548,0.050465,98983.0,98971.0,0.3608]
[1732301370744,0.050465,98983.0,98950.0,0.25511531]
[1732301370745,0.3608,98983.0,98962.0,0.3608]
[1732301370954,0.3608,98991.0,98972.0,0.050471]
[1732301371153,0.3608,98991.0,98971.0,0.3608]
[1732301371348,0.3608,98991.0,98972.0,0.1142]
[1732301371654,0.050463,98989.0,98972.0,0.1142]
[1732301373149,0.050463,98989.0,98971.0,0.3608]
[1732301373354,0.050463,98987.0,98972.0,0.1142]
[1732301374158,0.05047,98973.0,98971.0,0.3608]
[1732301376055,0.3608,98972.0,98949.0,0.4534]
[1732301376253,0.3608,98957.0,98950.0,0.0318]
[1732301376649,0.050481,98952.0,98950.0,0.0318]
[1732301379152,0.3608,98957.0,98950.0,0.0318]
[1732301379353,0.3608,98961.0,98953.0,0.3608]
[1732301379570,0.3608,98961.0,98954.0,0.1142]
[1732301379853,0.3608,98961.0,98954.0,0.16468]
[1732301380063,0.3608,98961.0,98954.0,0.1142]
[1732301380257,0.3608,98979.0,98956.0,0.050479]
[1732301380258,0.3608,98969.0,98956.0,0.050479]
[1732301380964,0.3608,98979.0,98962.0,0.411276]
[1732301381654,0.07063247,98974.0,98962.0,0.3608]
[1732301382047,0.050471,98971.0,98962.0,0.3608]
[1732301382263,0.07063247,98974.0,98958.0,0.03810047]
[1732301382454,0.05197564,98994.0,98979.0,0.050467]
[1732301382654,0.00151564,98994.0,98981.0,0.3608]
[1732301382859,0.00151564,98994.0,98983.0,0.050465]
[1732301383062,0.00151564,98994.0,98984.0,0.050465]
[1732301383367,0.00151564,98994.0,98981.0,0.3608]
[1732301383368,0.00151564,98994.0,98991.0,0.050461]
[1732301383862,6.4e-07,98994.0,98993.0,0.3608]
[1732301384055,0.00151511,99037.0,98993.0,0.6608]
[1732301384250,0.01443612,99036.0,99031.0,0.3608]
[1732301384450,0.00151511,99037.0,99031.0,0.3608]
[1732301387161,0.05195311,99037.0,99031.0,0.3608]
[1732301388172,0.00151511,99037.0,99031.0,0.3608]
[1732301388861,0.05195311,99037.0,99031.0,0.3608]
[1732301389067,0.00151511,99037.0,99031.0,0.3608]
[1732301389767,0.05195311,99037.0,99031.0,0.3608]
[1732301390263,0.00151511,99037.0,99031.0,0.3608]
[1732301390856,0.05195311,99037.0,99031.0,0.3608]
[1732301391063,0.00151511,99037.0,99031.0,0.3608]
[1732301391272,0.37559044,99036.0,99020.0,0.15378]
[1732301391457,0.050441,99031.0,99020.0,0.0331]
[1732301391659,0.050442,99029.0,99021.0,0.27310957]
[1732301391972,0.050442,99030.0,99021.0,0.27310957]
[1732301392468,0.050442,99028.0,99021.0,0.27310957]
[1732301392766,0.00151511,99037.0,99021.0,0.27310957]
[1732301393069,0.3608,99022.0,99021.0,0.27310957]
[1732301393268,0.3608,99022.0,99013.0,0.12068]
[1732301393566,0.05045,99013.0,99011.0,0.03966288]
[1732301393758,0.3608,99022.0,99011.0,0.00151488]
[1732301394159,0.411245,99022.0,99011.0,0.00151488]
[1732301394566,0.050446,99021.0,99011.0,0.00151488]
[1732301394969,0.050448,99016.0,99011.0,0.00151488]
[1732301395171,0.3608,99022.0,99011.0,0.00151488]
[1732301395370,0.3608,99022.0,99011.0,0.03980645]
[1732301395672,0.3608,99022.0,99011.0,0.00151488]
[1732301396073,0.3608,99022.0,99011.0,0.12219488]
[1732301396268,0.050447,99019.0,99016.0,0.00138336]
[1732301396877,0.3608,99022.0,99016.0,0.00138336]
[1732301396878,0.050448,99017.0,99016.0,0.00138336]
[1732301398071,0.05045,99012.0,99011.0,0.00151488]
[1732301398376,0.050461,98992.0,98991.0,0.00076]
[1732301398567,0.411261,98992.0,98991.0,0.00076]
[1732301401083,0.3608,98992.0,98991.0,0.00076]
[1732301401271,0.3608,99001.0,98991.0,0.00076]
[1732301401771,0.3608,98993.0,98991.0,0.00076]
[1732301402165,0.050461,98992.0,98991.0,0.00076]
[1732301405977,0.353501,98992.0,98991.0,0.00045678]
[1732301406183,0.353501,98992.0,98961.0,0.031]
[1732301406184,0.050471,98972.0,98961.0,0.031]
[1732301406486,0.411271,98972.0,98961.0,0.031]
[1732301407084,0.3608,98972.0,98971.0,0.03897929]
[1732301407274,0.3608,98972.0,98971.0,0.00151546]
[1732301408778,0.411271,98972.0,98971.0,0.00151546]
[1732301409484,0.3608,98972.0,98971.0,0.00151546]
[1732301409683,0.3608,98972.0,98971.0,0.0396599]
[1732301409981,0.3608,98972.0,98971.0,0.00151546]
[1732301410485,0.411271,98972.0,98971.0,0.00151546]
[1732301414587,0.050476,98961.0,98960.0,0.0299879]
[1732301414886,0.050481,98953.0,98940.0,0.00151607]
[1732301415182,0.050481,98953.0,98933.0,0.0333]
[1732301415183,0.05049,98934.0,98933.0,0.0333]
[1732301416382,0.41129,98934.0,98933.0,0.0333]
[1732301416589,0.3608,98934.0,98933.0,0.0333]
[1732301416980,0.41129,98934.0,98933.0,0.0333]
[1732301417884,0.3608,98934.0,98933.0,0.0333]
[1732301418790,0.050493,98929.0,98903.0,0.38210919]
[1732301418978,0.050498,98918.0,98917.0,4.849e-05]
[1732301419184,0.411298,98918.0,98917.0,4.849e-05]
[1732301419385,0.772098,98918.0,98917.0,4.849e-05]
[1732301419787,1.10652992,98918.0,98917.0,4.849e-05]
[1732301420184,1.075378,98918.0,98917.0,4.849e-05]
[1732301420485,1.075378,98918.0,98903.0,0.009]
[1732301420486,0.050506,98904.0,98903.0,0.009]
[1732301420687,0.411306,98904.0,98903.0,0.009]
[1732301421286,0.050506,98903.0,98886.0,0.1254491]
[1732301421489,0.3608,98901.0,98886.0,0.1254491]
[1732301421683,0.3608,98901.0,98886.0,0.0952]
[1732301421879,0.3608,98901.0,98893.0,0.050511]
[1732301422094,0.3608,98901.0,98886.0,0.145714]
[1732301422386,0.3608,98901.0,98887.0,0.050514]
[1732301422585,0.3608,98901.0,98886.0,0.0952]
[1732301422789,0.3608,98901.0,98888.0,0.050513]
[1732301423182,0.3608,98901.0,98886.0,0.0952]
[1732301424291,0.050508,98900.0,98886.0,0.0952]
[1732301424587,0.3608,98887.0,98880.0,0.00151707]
[1732301426592,0.050515,98886.0,98872.0,0.0307265]
[1732301426792,0.3608,98887.0,98870.0,0.3608]
[1732301426996,0.050516,98885.0,98870.0,0.3608]
[1732301427186,0.3608,98887.0,98860.0,0.0932]
[1732301427382,0.3608,98877.0,98860.0,0.12306925]
[1732301427587,0.3608,98877.0,98860.0,0.26962456]
[1732301428285,0.3608,98877.0,98860.0,0.12306925]
[1732301428490,0.3608,98886.0,98860.0,0.26962456]
[1732301428690,0.3608,98886.0,98860.0,0.12306925]
[1732301428892,0.050517,98883.0,98860.0,0.12306925]
[1732301429193,0.02018213,98881.0,98860.0,0.12306925]
[1732301429494,0.05052,98876.0,98860.0,0.02986925]
[1732301429683,0.02018213,98881.0,98855.0,0.00151745]
[1732301429684,0.050527,98862.0,98855.0,0.00151745]
[1732301429884,0.10952,98865.0,98855.0,0.00151745]
[1732301430293,0.3608,98863.0,98855.0,0.00151745]
[1732301430503,0.05053,98856.0,98855.0,0.00151745]
[1732301430684,0.14655531,98860.0,98839.0,0.3608]
[1732301430883,0.14655531,98850.0,98839.0,0.3608]
[1732301431184,0.050538,98841.0,98839.0,0.3608]
[1732301431384,0.10952,98841.0,98839.0,0.3608]
[1732301431592,0.3608,98855.0,98839.0,0.3608]
[1732301431793,0.034875,98854.0,98839.0,0.3608]
[1732301431996,0.01341346,98853.0,98839.0,0.3608]
[1732301432188,0.050534,98850.0,98839.0,0.3608]
[1732301432891,0.050534,98848.0,98839.0,0.3608]
[1732301433392,0.050534,98848.0,98828.0,0.3608]
[1732301433393,0.3608,98845.0,98833.0,0.03057017]
[1732301433592,0.3608,98845.0,98828.0,0.3608]
[1732301433790,0.05054,98837.0,98828.0,0.3608]
[1732301433990,0.3608,98845.0,98828.0,0.3608]
[1732301435086,0.411336,98845.0,98828.0,0.3608]
[1732301435997,0.3608,98834.0,98819.0,0.4236]
[1732301436291,0.3608,98834.0,98819.0,0.4224]
[1732301436492,0.3608,98834.0,98819.0,0.45376933]
[1732301437601,0.3608,98834.0,98819.0,0.4224]
[1732301437792,0.411342,98834.0,98819.0,0.0616]
[1732301437999,0.050543,98831.0,98819.0,0.0616]
[1732301438191,0.3608,98834.0,98800.0,0.1]
[1732301438192,0.050546,98825.0,98800.0,0.1]
[1732301438404,0.3608,98817.0,98813.0,5.396e-05]
[1732301438700,0.3608,98817.0,98801.0,0.18343198]
[1732301439303,0.3608,98817.0,98802.0,0.050557]
[1732301439607,0.09026652,98829.0,98813.0,0.050552]
[1732301439796,0.1057721,98836.0,98820.0,0.14655531]
[1732301440002,0.01550558,98838.0,98820.0,0.19710331]
[1732301440200,0.1057721,98839.0,98821.0,0.15099583]
[1732301440510,0.09026652,98840.0,98829.0,0.3608]
[1732301440798,0.3608,98844.0,98830.0,0.21520691]
[1732301440991,0.3608,98844.0,98834.0,0.050541]
[1732301441402,0.3608,98844.0,98830.0,0.0628]
[1732301441595,0.3608,98844.0,98830.0,0.113343]
[1732301441596,0.45106652,98844.0,98830.0,0.113343]
[1732301441797,0.45106652,98844.0,98831.0,0.15160456]
[1732301441997,0.09026652,98842.0,98831.0,0.15160456]
[1732301442201,0.09026652,98840.0,98831.0,0.15160456]
[1732301442997,0.3608,98844.0,98831.0,0.15160456]
[1732301442998,0.45106652,98844.0,98831.0,0.00016137]
[1732301443202,0.09026652,98839.0,98831.0,0.00016137]
[1732301443397,0.09026652,98840.0,98831.0,0.00016137]
[1732301443606,0.09026652,98839.0,98831.0,0.00016137]
[1732301444001,0.3608,98844.0,98831.0,0.00016137]
[1732301444002,0.45106652,98844.0,98831.0,0.00016137]
[1732301444304,0.09026652,98840.0,98831.0,0.00016137]
[1732301444492,0.09026652,98839.0,98831.0,0.00016137]
[1732301445107,0.09026652,98838.0,98831.0,0.00016137]
[1732301445300,0.09026652,98834.0,98831.0,0.00016137]
[1732301446097,0.09026652,98833.0,98831.0,0.00016137]
[1732301446302,0.04026652,98834.0,98831.0,0.00016137]
[1732301446503,0.12049146,98843.0,98831.0,0.00016137]
[1732301446704,0.48129146,98844.0,98831.0,0.00016137]
[1732301446909,0.3608,98844.0,98831.0,0.00016137]
[1732301447410,0.3608,98844.0,98832.0,0.050542]
[1732301447704,0.12049146,98850.0,98847.0,0.050534]
[1732301447908,0.11237656,98860.0,98837.0,0.3608]
[1732301447909,0.12049146,98856.0,98849.0,0.3608]
[1732301448107,0.12049146,98859.0,98857.0,0.050529]
[1732301448307,0.00151792,98865.0,98859.0,0.050529]
[1732301448513,0.00151792,98865.0,98858.0,0.3927]
[1732301448711,0.00151792,98865.0,98863.0,0.050526]
[1732301448916,0.11985537,98864.0,98863.0,0.050526]
[1732301449209,0.00151792,98865.0,98864.0,0.30344]
[1732301449606,0.050515,98886.0,98867.0,0.050524]
[1732301450311,0.3608,98887.0,98864.0,0.0304]
[1732301450312,0.3608,98887.0,98870.0,0.050523]
[1732301450514,0.14992233,98874.0,98873.0,0.050521]
[1732301450808,0.14992233,98875.0,98869.0,0.050523]
[1732301451313,0.01561787,98884.0,98871.0,0.050522]
[1732301451314,0.14992233,98874.0,98871.0,0.050522]
[1732301451513,0.14992233,98874.0,98866.0,0.3608]
[1732301451899,0.14992233,98873.0,98867.0,0.15223068]
[1732301452104,0.14992233,98872.0,98867.0,0.15223068]
[1732301452310,0.14992233,98870.0,98862.0,0.3608]
[1732301452611,0.14992233,98869.0,98862.0,0.39154257]
[1732301452802,0.3608,98877.0,98862.0,0.39154257]
[1732301452803,0.14992233,98868.0,98862.0,0.39154257]
[1732301453000,0.5407068,98877.0,98862.0,0.39154257]
[1732301453001,0.14992233,98869.0,98862.0,0.39154257]
[1732301453215,0.14992233,98869.0,98866.0,0.050525]
[1732301453415,0.3608,98877.0,98862.0,0.39154257]
[1732301453416,0.14992233,98870.0,98867.0,0.050524]
[1732301453611,0.14992233,98871.0,98868.0,0.050524]
[1732301453817,0.14992233,98871.0,98869.0,0.050523]
[1732301454117,0.14992233,98870.0,98868.0,0.050524]
[1732301454518,0.14992233,98871.0,98870.0,0.050523]
[1732301454710,0.14992233,98871.0,98864.0,0.050526]
[1732301454912,0.14992233,98871.0,98868.0,0.050524]
[1732301455117,0.14992233,98871.0,98864.0,0.050526]
[1732301455305,0.14992233,98871.0,98869.0,0.050523]
[1732301455507,0.14992233,98871.0,98865.0,0.15244892]
[1732301455820,0.14992233,98871.0,98863.0,0.15244892]
[1732301456114,0.14992233,98871.0,98862.0,0.39154257]
[1732301456115,0.14992233,98871.0,98866.0,0.15189733]
[1732301456311,0.14992233,98871.0,98864.0,0.20242333]
[1732301456614,0.14992233,98872.0,98864.0,0.050526]
[1732301456812,0.11997991,98865.0,98864.0,0.050526]
[1732301457011,0.14992233,98872.0,98864.0,0.050526]
[1732301457214,0.11998382,98865.0,98864.0,0.20181466]
[1732301457411,0.14992233,98872.0,98864.0,0.15128866]
[1732301457610,0.11998466,98867.0,98865.0,0.050525]
[1732301458010,0.11998466,98867.0,98866.0,0.15113513]
[1732301458311,0.3608,98877.0,98867.0,0.050524]
[1732301458312,0.11998466,98868.0,98867.0,0.050524]
[1732301458510,0.11998466,98870.0,98869.0,0.050523]
[1732301458719,0.11998466,98871.0,98869.0,0.050523]
[1732301458909,0.11998466,98871.0,98865.0,0.15100299]
[1732301459106,0.11998466,98872.0,98868.0,0.050524]
[1732301459417,0.11998466,98875.0,98868.0,0.050524]
[1732301459613,0.11998466,98875.0,98862.0,0.44206957]
[1732301460015,0.11998466,98875.0,98865.0,0.15101022]
[1732301460213,0.11998466,98875.0,98863.0,0.15101022]
[1732301460515,0.11998466,98873.0,98871.0,0.3608]
[1732301461220,0.11998466,98878.0,98871.0,0.3608]
[1732301461519,0.11998466,98880.0,98871.0,0.3608]
[1732301461916,0.3608,98881.0,98871.0,0.3608]
[1732301462424,0.411318,98881.0,98871.0,0.3608]
[1732301462719,0.3608,98881.0,98871.0,0.3608]
[1732301463218,0.3608,98881.0,98875.0,0.05052]
[1732301463514,0.0307,98894.0,98871.0,0.3608]
[1732301463515,0.11998466,98896.0,98876.0,0.15160607]
[1732301463720,0.36136001,98899.0,98893.0,0.050511]
[1732301463721,0.11998466,98898.0,98893.0,0.050511]
[1732301463910,0.00056001,98899.0,98894.0,0.050511]
[1732301464113,0.00012404,98909.0,98894.0,0.411311]
[1732301464313,0.00012404,98909.0,98894.0,0.81567709]
[1732301464514,0.00012404,98909.0,98908.0,0.050504]
[1732301464719,0.00012404,98909.0,98902.0,0.3608]
[1732301464916,0.00012404,98909.0,98903.0,0.050506]
[1732301465113,0.00012404,98909.0,98903.0,0.15111703]
[1732301465315,0.00012404,98909.0,98908.0,0.050504]
[1732301465520,0.00012404,98909.0,98903.0,0.15111703]
[1732301465717,0.00012404,98909.0,98905.0,0.050505]
[1732301466021,0.00012404,98909.0,98908.0,0.050504]
[1732301468026,0.00012404,98909.0,98908.0,0.20182271]
[1732301468227,0.00012404,98909.0,98908.0,0.53562263]
[1732301469614,0.00052,98927.0,98908.0,0.48511863]
[1732301469918,0.00052,98927.0,98911.0,0.050502]
[1732301470228,0.00052,98927.0,98915.0,0.0505]
[1732301470418,0.00052,98927.0,98916.0,0.1158]
[1732301470616,0.00052,98927.0,98916.0,0.26812842]
[1732301470819,0.00052,98927.0,98918.0,0.050498]
[1732301471215,0.00052,98927.0,98922.0,0.050496]
[1732301471924,0.00052,98927.0,98925.0,0.3608]
[1732301472620,0.00052,98927.0,98926.0,0.050494]
[1732301473521,0.00052,98927.0,98925.0,0.3608]
[1732301473728,0.00052,98927.0,98925.0,0.39158362]
[1732301473916,0.3608,98941.0,98925.0,0.39158362]
[1732301474729,0.411287,98941.0,98925.0,0.39158362]
[1732301474927,0.3608,98941.0,98925.0,0.39158362]
[1732301475423,0.050487,98940.0,98925.0,0.39158362]
[1732301475630,0.3608,98941.0,98925.0,0.39158362]
[1732301477418,0.3608,98941.0,98926.0,0.050494]
[1732301477622,0.3608,98941.0,98930.0,0.09794064]
[1732301478424,0.3608,98941.0,98936.0,0.050489]
[1732301478626,0.3608,98941.0,98933.0,0.050491]
[1732301479227,0.00151678,98948.0,98935.0,0.05049]
[1732301479424,0.00151678,98948.0,98938.0,0.09794064]
[1732301480226,0.00151678,98948.0,98934.0,0.11576]
[1732301480532,0.00151678,98948.0,98935.0,0.15179868]
[1732301481923,0.050485,98946.0,98935.0,0.15179868]
[1732301482133,0.050485,98946.0,98920.0,0.050497]
[1732301482134,0.050494,98928.0,98904.0,0.3608]
[1732301482434,0.3608,98936.0,98915.0,0.15081702]
[1732301482435,0.050496,98924.0,98915.0,0.15081702]
[1732301483028,0.3608,98927.0,98915.0,0.15081702]
[1732301483529,0.3608,98927.0,98917.0,0.09794064]
[1732301483924,0.050497,98922.0,98918.0,0.1522951]
[1732301484232,0.050495,98925.0,98916.0,0.1522951]
[1732301484546,0.050495,98925.0,98919.0,0.1522951]
[1732301484827,0.050496,98923.0,98919.0,0.1522951]
[1732301485029,0.050497,98920.0,98919.0,0.1522951]
[1732301485226,0.3608,98927.0,98916.0,0.15161962]
[1732301485534,0.050497,98921.0,98914.0,0.39080414]
[1732301485834,0.3608,98927.0,98914.0,0.39080414]
[1732301486027,0.3608,98927.0,98917.0,0.09794064]
[1732301486229,0.50786,98945.0,98917.0,0.09794064]
[1732301486427,0.07065953,98942.0,98926.0,0.09794064]
[1732301486626,0.02017253,98942.0,98926.0,0.09794064]
[1732301487029,0.050488,98939.0,98926.0,0.09794064]
[1732301487233,0.3608,98945.0,98926.0,0.09794064]
[1732301487536,0.050485,98944.0,98926.0,0.09794064]
[1732301487734,0.3608,98945.0,98926.0,0.09794064]
[1732301487938,0.05049,98935.0,98926.0,0.09794064]
[1732301488136,0.050488,98940.0,98926.0,0.09794064]
[1732301488325,0.050488,98939.0,98926.0,0.09794064]
[1732301488532,0.3608,98945.0,98926.0,0.09794064]
[1732301488729,0.3608,98927.0,98908.0,0.11576]
[1732301488934,0.3608,98927.0,98910.0,0.09794064]
[1732301488935,0.3608,98917.0,98910.0,0.09794064]
[1732301489135,0.3608,98917.0,98915.0,0.15200821]
[1732301489341,0.3608,98917.0,98911.0,0.15200821]
[1732301489541,0.3608,98917.0,98911.0,0.18370821]
[1732301489738,0.3608,98917.0,98916.0,0.15200821]
[1732301489938,0.3608,98917.0,98911.0,0.0317]
[1732301489939,0.3608,98917.0,98912.0,0.15067022]
[1732301490138,0.3608,98936.0,98913.0,0.3608]
[1732301490435,0.3608,98936.0,98926.0,0.09794064]
[1732301490835,0.05049,98935.0,98926.0,0.09794064]
[1732301491037,0.3608,98936.0,98926.0,0.09794064]